fUST/lending_fUST_20241229
["ID","MTS","AMOUNT","RATE_DAILY","PERIOD"]
[347051948,1735485042525,-435.81728657,9.196e-05,2]
[347051950,1735485042534,-500.0,9.196e-05,2]
[347051952,1735485042544,-500.47479666,9.196e-05,2]
[347051954,1735485042553,-500.0,9.196e-05,2]
[347051956,1735485042563,-500.0,9.196e-05,2]
[347051958,1735485042573,-500.0,9.196e-05,2]
[347051960,1735485042583,-500.0,9.196e-05,2]
[347051962,1735485042594,-500.0,9.196e-05,2]
[347051964,1735485042604,-500.0,9.196e-05,2]
[347051966,1735485042613,-184.31590418,9.196e-05,2]
[347051968,1735485042623,-500.0,9.196e-05,2]
[347051970,1735485042633,-500.0,9.196e-05,2]
[347051978,1735485042711,-500.0,9.196e-05,2]
[347051979,1735485042720,-500.0,9.196e-05,2]
[347051981,1735485042730,-500.0,9.196e-05,2]
[347051983,1735485042739,-500.0,9.196e-05,2]
[347051984,1735485042748,-500.0,9.196e-05,2]
[347051986,1735485042757,-500.0,9.196e-05,2]
[347051987,1735485042767,-500.0,9.196e-05,2]
[347051989,1735485042776,-500.0,9.196e-05,2]
[347051990,1735485042789,-500.0,9.196e-05,2]
[347051992,1735485042800,-417.01571229,9.196e-05,2]
[347051994,1735485042811,-500.0,9.196e-05,2]
[347051995,1735485042821,-500.0,9.196e-05,2]
[347051997,1735485042833,-500.0,9.196e-05,2]
[347051998,1735485042843,-500.0,9.196e-05,2]
[347052000,1735485042853,-500.0,9.196e-05,2]
[347052001,1735485042863,-500.8464164,9.196e-05,2]
[347052003,1735485042874,-500.0,9.196e-05,2]
[347052005,1735485042884,-500.0,9.196e-05,2]
[347052006,1735485042894,-500.0,9.196e-05,2]
[347052009,1735485042904,-500.0,9.196e-05,2]
[347052011,1735485042915,-500.0,9.196e-05,2]
[347052013,1735485042924,-500.0,9.196e-05,2]
[347052015,1735485042934,-500.0,9.196e-05,2]
[347052016,1735485042947,-500.0,9.196e-05,2]
[347052018,1735485042957,-500.0,9.196e-05,2]
[347052020,1735485042967,-501.67606738,9.196e-05,2]
[347052022,1735485042977,-500.0,9.196e-05,2]
[347052024,1735485042988,-500.0,9.196e-05,2]
[347052025,1735485042998,-182.52602396,9.196e-05,2]
[347052027,1735485043007,-500.0,9.196e-05,2]
[347052030,1735485043017,-504.1035995,9.196e-05,2]
[347052032,1735485043026,-753.77,9.196e-05,2]
[347052036,1735485043036,-500.0,9.196e-05,2]
[347052039,1735485043046,-500.0,9.196e-05,2]
[347052040,1735485043055,-501.70494999,9.196e-05,2]
[347052042,1735485043065,-551.71093898,9.196e-05,2]
[347052043,1735485043074,-501.55468763,9.196e-05,2]
[347052045,1735485043084,-670.05,9.196e-05,2]
[347052047,1735485043094,-503.56411124,9.196e-05,2]
[347052049,1735485043104,-500.0,9.196e-05,2]
[347052051,1735485043113,-500.0,9.196e-05,2]
[347052053,1735485043123,-500.0,9.198e-05,2]
[347052054,1735485043132,-500.0,9.199e-05,2]
[347052056,1735485043141,-500.0,9.199e-05,2]
[347052058,1735485043151,-500.0,9.199e-05,2]
[347052060,1735485043160,-500.0,9.199e-05,2]
[347052064,1735485043169,-537.2487605,9.199e-05,2]
[347052067,1735485043179,-530.7901522,9.199e-05,2]
[347052068,1735485043188,-505.59039308,9.199e-05,2]
[347052071,1735485043201,-500.0,9.199e-05,2]
[347052074,1735485043210,-504.8744336,9.199e-05,2]
[347052076,1735485043220,-500.0,9.199e-05,2]
[347052079,1735485043229,-500.0,9.199e-05,2]
[347052081,1735485043239,-500.0,9.199e-05,2]
[347052083,1735485043248,-500.0,9.199e-05,2]
[347052084,1735485043258,-500.0,9.199e-05,2]
[347052086,1735485043267,-500.0,9.227e-05,2]
[347052088,1735485043276,-500.0,9.227e-05,2]
[347052089,1735485043286,-559.297591,9.228e-05,2]
[347052091,1735485043295,-500.0,9.228e-05,2]
[347052093,1735485043304,-500.0,9.228e-05,2]
[347052094,1735485043313,-500.50664382,9.228e-05,2]
[347052096,1735485043322,-500.0,9.228e-05,2]
[347052098,1735485043331,-500.0,9.228e-05,2]
[347052099,1735485043340,-500.0,9.228e-05,2]
[347052101,1735485043349,-500.0,9.228e-05,2]
[347052103,1735485043358,-500.0,9.228e-05,2]
[347052104,1735485043368,-500.0,9.228e-05,2]
[347052106,1735485043377,-500.0,9.228e-05,2]
[347052107,1735485043386,-500.0,9.228e-05,2]
[347052109,1735485043395,-500.34082409,9.228e-05,2]
[347052111,1735485043405,-500.0,9.228e-05,2]
[347052112,1735485043414,-500.0,9.228e-05,2]
[347052114,1735485043424,-500.0,9.228e-05,2]
[347052115,1735485043433,-500.0,9.228e-05,2]
[347052117,1735485043444,-500.0,9.228e-05,2]
[347052119,1735485043453,-500.0,9.228e-05,2]
[347052120,1735485043462,-502.48748472,9.228e-05,2]
[347052122,1735485043472,-500.91172833,9.228e-05,2]
[347052124,1735485043481,-500.92611128,9.228e-05,2]
[347052125,1735485043491,-500.0,9.228e-05,2]
[347052127,1735485043501,-501.539267,9.228e-05,2]
[347052129,1735485043510,-500.79908232,9.228e-05,2]
[347052130,1735485043519,-501.74077293,9.228e-05,2]
[347052132,1735485043529,-502.18152263,9.228e-05,2]
[347052134,1735485043538,-500.0,9.228e-05,2]
[347052135,1735485043547,-500.0,9.229e-05,2]
[347052136,1735485043556,-983.55,9.229e-05,2]
[347052138,1735485043565,-581.10394309,9.229e-05,2]
[347052140,1735485043575,-500.0,9.229e-05,2]
[347052141,1735485043584,-500.0,9.229e-05,2]
[347052143,1735485043593,-1664.69,9.229e-05,2]
[347052145,1735485043603,-500.0,9.229e-05,2]
[347052146,1735485043612,-500.0,9.229e-05,2]
[347052148,1735485043621,-500.0,9.229e-05,2]
[347052150,1735485043631,-413.1104824,9.229e-05,2]
[347052151,1735485043641,-500.0,9.229e-05,2]
[347052153,1735485043650,-500.0,9.23e-05,2]
[347052155,1735485043659,-500.0,9.23e-05,2]
[347052157,1735485043669,-500.0,9.23e-05,2]
[347052158,1735485043678,-504.24007526,9.23e-05,2]
[347052160,1735485043688,-500.0,9.23e-05,2]
[347052162,1735485043701,-500.0,9.23e-05,2]
[347052164,1735485043712,-1664.69,9.23e-05,2]
[347052165,1735485043721,-500.0,9.231e-05,2]
[347052167,1735485043731,-4851.03,9.231e-05,2]
[347052169,1735485043740,-783.32,9.231e-05,2]
[347052170,1735485043749,-1664.69,9.231e-05,2]
[347052172,1735485043759,-500.0,9.231e-05,2]
[347052173,1735485043767,-500.0,9.231e-05,2]
[347052175,1735485043777,-1664.69,9.235e-05,2]
[347052177,1735485043787,-5496.72,9.236e-05,2]
[347052179,1735485043801,-1664.69,9.239e-05,2]
[347052180,1735485043810,-159.22915729,9.443e-05,2]
[347052182,1735485043820,-500.0,9.443e-05,2]
[347052184,1735485043830,-491.53985651,9.443e-05,2]
[347052185,1735485043839,-500.0,9.443e-05,2]
[347052187,1735485043849,-605.91,9.465e-05,2]
[347052189,1735485043858,-516.80236185,9.465e-05,2]
[347052191,1735485043869,-500.0,9.465e-05,2]
[347052192,1735485043878,-2121.42,9.465e-05,2]
[347052194,1735485043887,-1059.67,9.466e-05,2]
[347052195,1735485043896,-500.0,9.466e-05,2]
[347052197,1735485043905,-500.0,9.466e-05,2]
[347052199,1735485043914,-500.0,9.466e-05,2]
[347052200,1735485043924,-508.01365614,9.466e-05,2]
[347052202,1735485043933,-2563.51,9.466e-05,2]
[347052204,1735485043943,-500.0,9.466e-05,2]
[347052205,1735485043952,-500.0,9.466e-05,2]
[347052207,1735485043962,-500.0,9.466e-05,2]
[347052213,1735485044028,-1657.25,9.466e-05,2]
[347052215,1735485044044,-213.81509392,9.467e-05,2]
[347052216,1735485044054,-500.0,9.467e-05,2]
[347052218,1735485044063,-500.0,9.467e-05,2]
[347052220,1735485044073,-500.0,9.467e-05,2]
[347052221,1735485044083,-500.0,9.467e-05,2]
[347052223,1735485044093,-500.0,9.467e-05,2]
[347052225,1735485044103,-716.16,9.467e-05,2]
[347052227,1735485044112,-500.0,9.467e-05,2]
[347052228,1735485044122,-500.0,9.467e-05,2]
[347052230,1735485044132,-500.0,9.467e-05,2]
[347052231,1735485044141,-500.0,9.467e-05,2]
[347052233,1735485044151,-500.0,9.467e-05,2]
[347052235,1735485044160,-500.0,9.467e-05,2]
[347052237,1735485044169,-500.0,9.467e-05,2]
[347052239,1735485044178,-500.0,9.467e-05,2]
[347052240,1735485044187,-555.56,9.467e-05,2]
[347052242,1735485044198,-622.73078672,9.467e-05,2]
[347052244,1735485044207,-500.0,9.467e-05,2]
[347052246,1735485044217,-500.0,9.467e-05,2]
[347052248,1735485044226,-500.91007195,9.467e-05,2]
[347052250,1735485044235,-500.0,9.467e-05,2]
[347052252,1735485044245,-500.0,9.467e-05,2]
[347052254,1735485044253,-500.0,9.467e-05,2]
[347052256,1735485044263,-500.0,9.467e-05,2]
[347052258,1735485044272,-501.1716519,9.467e-05,2]
[347052260,1735485044282,-501.07787725,9.467e-05,2]
[347052262,1735485044291,-500.0,9.467e-05,2]
[347052264,1735485044300,-500.0,9.467e-05,2]
[347052266,1735485044310,-500.0,9.467e-05,2]
[347052268,1735485044319,-500.0,9.467e-05,2]
[347052270,1735485044328,-500.0,9.467e-05,2]
[347052272,1735485044337,-579.83,9.467e-05,2]
[347052274,1735485044347,-501.88421758,9.467e-05,2]
[347052276,1735485044356,-500.0,9.467e-05,2]
[347052278,1735485044365,-500.0,9.467e-05,2]
[347052280,1735485044374,-500.0,9.467e-05,2]
[347052281,1735485044383,-500.0,9.467e-05,2]
[347052282,1735485044393,-500.0,9.467e-05,2]
[347052283,1735485044402,-500.0,9.467e-05,2]
[347052284,1735485044411,-500.0,9.467e-05,2]
[347052285,1735485044421,-750.61,9.467e-05,2]
[347052286,1735485044430,-510.56026234,9.467e-05,2]
[347052287,1735485044440,-509.5,9.467e-05,2]
[347052288,1735485044450,-511.9,9.467e-05,2]
[347052289,1735485044459,-504.67869026,9.467e-05,2]
[347052290,1735485044468,-500.0,9.467e-05,2]
[347052291,1735485044477,-500.0,9.467e-05,2]
[347052292,1735485044487,-500.0,9.467e-05,2]
[347052293,1735485044496,-500.0,9.467e-05,2]
[347052294,1735485044506,-500.0,9.467e-05,2]
[347052295,1735485044515,-500.0,9.467e-05,2]
[347052296,1735485044525,-500.77834914,9.467e-05,2]
[347052297,1735485044535,-500.0,9.467e-05,2]
[347052298,1735485044543,-500.0,9.467e-05,2]
[347052299,1735485044553,-500.0,9.467e-05,2]
[347052300,1735485044562,-500.0,9.467e-05,2]
[347052301,1735485044571,-576.00201627,9.467e-05,2]
[347052302,1735485044580,-500.0,9.467e-05,2]
[347052303,1735485044589,-500.0,9.467e-05,2]
[347052304,1735485044599,-500.0,9.467e-05,2]
[347052305,1735485044608,-515.79,9.467e-05,2]
[347052306,1735485044617,-510.83,9.467e-05,2]
[347052307,1735485044626,-500.0,9.467e-05,2]
[347052308,1735485044636,-1035.32,9.467e-05,2]
[347052309,1735485044646,-500.0,9.467e-05,2]
[347052310,1735485044655,-500.0,9.467e-05,2]
[347052311,1735485044664,-500.0,9.467e-05,2]
[347052312,1735485044674,-514.55730595,9.467e-05,2]
[347052313,1735485044683,-500.0,9.467e-05,2]
[347052314,1735485044693,-500.0,9.467e-05,2]
[347052315,1735485044702,-585.02,9.467e-05,2]
[347052316,1735485044711,-500.0,9.467e-05,2]
[347052317,1735485044720,-500.0,9.467e-05,2]
[347052319,1735485044729,-500.0,9.467e-05,2]
[347052320,1735485044738,-500.0,9.467e-05,2]
[347052321,1735485044748,-500.0,9.467e-05,2]
[347052322,1735485044757,-504.32554228,9.467e-05,2]
[347052324,1735485044766,-500.0,9.467e-05,2]
[347052325,1735485044776,-500.0,9.467e-05,2]
[347052327,1735485044786,-500.0,9.467e-05,2]
[347052329,1735485044799,-500.0,9.467e-05,2]
[347052331,1735485044809,-500.0,9.467e-05,2]
[347052333,1735485044818,-501.46879004,9.467e-05,2]
[347052335,1735485044827,-500.0,9.467e-05,2]
[347052337,1735485044837,-500.0,9.467e-05,2]
[347052339,1735485044846,-500.0,9.467e-05,2]
[347052341,1735485044855,-500.0,9.467e-05,2]
[347052343,1735485044864,-500.0,9.467e-05,2]
[347052345,1735485044875,-502.51045588,9.467e-05,2]
[347052347,1735485044884,-500.0,9.467e-05,2]
[347052349,1735485044893,-892.36,9.467e-05,2]
[347052351,1735485044903,-500.0,9.467e-05,2]
[347052353,1735485044912,-500.0,9.467e-05,2]
[347052355,1735485044921,-501.66032188,9.467e-05,2]
[347052357,1735485044930,-500.0,9.467e-05,2]
[347052360,1735485044940,-500.0,9.467e-05,2]
[347052361,1735485044949,-1510.05,9.467e-05,2]
[347052363,1735485044959,-500.0,9.467e-05,2]
[347052366,1735485044968,-500.0,9.467e-05,2]
[347052368,1735485044978,-500.0,9.467e-05,2]
[347052370,1735485044987,-500.0,9.467e-05,2]
[347052372,1735485044996,-500.0,9.467e-05,2]
[347052374,1735485045006,-605.75207969,9.467e-05,2]
[347052375,1735485045015,-502.08,9.467e-05,2]
[347052377,1735485045024,-545.95,9.467e-05,2]
[347052379,1735485045034,-500.0,9.467e-05,2]
[347052381,1735485045043,-694.38,9.467e-05,2]
[347052382,1735485045052,-500.0,9.467e-05,2]
[347052383,1735485045061,-500.0,9.467e-05,2]
[347052384,1735485045070,-500.0,9.467e-05,2]
[347052385,1735485045079,-500.0,9.467e-05,2]
[347052386,1735485045088,-924.15,9.467e-05,2]
[347052387,1735485045097,-495.0,9.467e-05,2]
[347052388,1735485045107,-500.0,9.467e-05,2]
[347052389,1735485045116,-500.0,9.467e-05,2]
[347052390,1735485045125,-500.0,9.467e-05,2]
[347052391,1735485045134,-500.0,9.467e-05,2]
[347052392,1735485045143,-1115.65,9.467e-05,2]
[347052393,1735485045152,-500.0,9.467e-05,2]
[347052394,1735485045162,-500.0,9.467e-05,2]
[347052395,1735485045230,-500.0,9.467e-05,2]
[347052396,1735485045240,-500.0,9.467e-05,2]
[347052397,1735485045249,-500.0,9.467e-05,2]
[347052398,1735485045261,-1196.59,9.467e-05,2]
[347052399,1735485045271,-510.30871955,9.467e-05,2]
[347052400,1735485045280,-500.0,9.467e-05,2]
[347052401,1735485045289,-163.74157313,9.467e-05,2]
[347052402,1735485045299,-388.85037273,9.467e-05,2]
[347052403,1735485045309,-939.67,9.467e-05,2]
[347052405,1735485045318,-500.0,9.467e-05,2]
[347052406,1735485045328,-500.0,9.467e-05,2]
[347052407,1735485045338,-500.0,9.467e-05,2]
[347052408,1735485045347,-500.0,9.467e-05,2]
[347052409,1735485045357,-228.98729631,9.467e-05,2]
[347052410,1735485045366,-500.0,9.467e-05,2]
[347052411,1735485045375,-504.96294223,9.467e-05,2]
[347052412,1735485045385,-500.0,9.467e-05,2]
[347052413,1735485045394,-508.5045614,9.467e-05,2]
[347052414,1735485045402,-500.0,9.467e-05,2]
[347052415,1735485045412,-500.0,9.467e-05,2]
[347052416,1735485045421,-505.57412992,9.467e-05,2]
[347052417,1735485045430,-500.0,9.467e-05,2]
[347052418,1735485045439,-508.19232452,9.468e-05,2]
[347052419,1735485045450,-500.0,9.468e-05,2]
[347052420,1735485045459,-500.0,9.468e-05,2]
[347052421,1735485045468,-500.0,9.468e-05,2]
[347052422,1735485045477,-500.0,9.468e-05,2]
[347052423,1735485045486,-500.0,9.468e-05,2]
[347052424,1735485045495,-500.0,9.468e-05,2]
[347052425,1735485045504,-500.0,9.468e-05,2]
[347052426,1735485045513,-500.0,9.468e-05,2]
[347052427,1735485045521,-500.0,9.468e-05,2]
[347052428,1735485045529,-500.0,9.468e-05,2]
[347052429,1735485045538,-500.0,9.468e-05,2]
[347052430,1735485045547,-500.0,9.468e-05,2]
[347052431,1735485045557,-500.0,9.468e-05,2]
[347052432,1735485045566,-500.0,9.468e-05,2]
[347052433,1735485045575,-502.3965026,9.468e-05,2]
[347052434,1735485045584,-500.0,9.468e-05,2]
[347052435,1735485045593,-500.0,9.468e-05,2]
[347052436,1735485045602,-500.0,9.468e-05,2]
[347052437,1735485045611,-500.0,9.468e-05,2]
[347052438,1735485045621,-611.4175025,9.468e-05,2]
[347052439,1735485045630,-500.0,9.468e-05,2]
[347052440,1735485045639,-500.0,9.468e-05,2]
[347052441,1735485045648,-500.0,9.468e-05,2]
[347052442,1735485045657,-841.62,9.468e-05,2]
[347052443,1735485045666,-500.0,9.468e-05,2]
[347052444,1735485045676,-500.0,9.468e-05,2]
[347052445,1735485045685,-618.98,9.468e-05,2]
[347052446,1735485045696,-518.11,9.468e-05,2]
[347052447,1735485045705,-565.69,9.468e-05,2]
[347052448,1735485045715,-522.9,9.468e-05,2]
[347052449,1735485045724,-500.0,9.468e-05,2]
[347052450,1735485045733,-500.0,9.468e-05,2]
[347052451,1735485045742,-500.0,9.468e-05,2]
[347052452,1735485045752,-500.0,9.468e-05,2]
[347052453,1735485045761,-3018.37,9.468e-05,2]
[347052454,1735485045770,-2892.61,9.468e-05,2]
[347052455,1735485045779,-500.0,9.468e-05,2]
[347052456,1735485045788,-500.0,9.468e-05,2]
[347052457,1735485045801,-584.87,9.468e-05,2]
[347052458,1735485045810,-500.0,9.468e-05,2]
[347052459,1735485045820,-953.05,9.468e-05,2]
[347052460,1735485045829,-501.18025801,9.468e-05,2]
[347052461,1735485045839,-500.0,9.468e-05,2]
[347052462,1735485045847,-500.0,9.468e-05,2]
[347052463,1735485045857,-500.0,9.468e-05,2]
[347052464,1735485045866,-183.04926913,9.468e-05,2]
[347052465,1735485045875,-967.91,9.468e-05,2]
[347052466,1735485045885,-504.89030749,9.468e-05,2]
[347052467,1735485045894,-500.0,9.468e-05,2]
[347052468,1735485045903,-500.0,9.468e-05,2]
[347052469,1735485045912,-497.16023063,9.468e-05,2]
[347052470,1735485045921,-848.38,9.469e-05,2]
[347052471,1735485045930,-1073.58,9.469e-05,2]
[347052472,1735485045939,-500.0,9.469e-05,2]
[347052473,1735485045949,-705.45,9.469e-05,2]
[347052474,1735485045959,-643.54,9.469e-05,2]
[347052475,1735485045969,-500.0,9.469e-05,2]
[347052476,1735485045978,-500.0,9.469e-05,2]
[347052477,1735485045987,-22014.43,9.469e-05,2]
[347052478,1735485045996,-500.0,9.469e-05,2]
[347052479,1735485046006,-708.85,9.469e-05,2]
[347052481,1735485046015,-407.4638469,9.469e-05,2]
[347052483,1735485046024,-209.44887716,9.47e-05,2]
[347052485,1735485046033,-500.0,9.47e-05,2]
[347052488,1735485046043,-505.27406497,9.47e-05,2]
[347052490,1735485046052,-500.0,9.47e-05,2]
[347052492,1735485046061,-500.0,9.47e-05,2]
[347052494,1735485046070,-500.0,9.47e-05,2]
[347052495,1735485046079,-507.43454958,9.47e-05,2]
[347052496,1735485046088,-505.17298432,9.47e-05,2]
[347052497,1735485046097,-500.0,9.47e-05,2]
[347052498,1735485046107,-508.61412482,9.47e-05,2]
[347052499,1735485046116,-502.82435746,9.47e-05,2]
[347052500,1735485046125,-502.72864842,9.47e-05,2]
[347052501,1735485046134,-505.03509409,9.47e-05,2]
[347052502,1735485046144,-509.08434343,9.47e-05,2]
[347052503,1735485046153,-500.0,9.47e-05,2]
[347052504,1735485046162,-500.0,9.47e-05,2]
[347052505,1735485046171,-500.0,9.47e-05,2]
[347052506,1735485046180,-500.0,9.47e-05,2]
[347052507,1735485046189,-500.0,9.47e-05,2]
[347052508,1735485046201,-500.0,9.47e-05,2]
[347052509,1735485046211,-500.0,9.47e-05,2]
[347052510,1735485046221,-535.03,9.47e-05,2]
[347052511,1735485046230,-500.0,9.47e-05,2]
[347052512,1735485046239,-500.0,9.47e-05,2]
[347052513,1735485046249,-188.0,9.47e-05,2]
[347052514,1735485046309,-500.0,9.47e-05,2]
[347052515,1735485046323,-500.0,9.47e-05,2]
[347052516,1735485046332,-502.57936197,9.47e-05,2]
[347052517,1735485046341,-500.0,9.47e-05,2]
[347052518,1735485046351,-482.47538249,9.47e-05,2]
[347052519,1735485046360,-500.0,9.47e-05,2]
[347052520,1735485046369,-500.0,9.47e-05,2]
[347052521,1735485046378,-500.47401218,9.47e-05,2]
[347052522,1735485046388,-500.0,9.47e-05,2]
[347052523,1735485046397,-500.0,9.47e-05,2]
[347052524,1735485046406,-500.0,9.47e-05,2]
[347052525,1735485046415,-502.39575312,9.47e-05,2]
[347052526,1735485046424,-500.0,9.47e-05,2]
[347052527,1735485046433,-517.95857859,9.47e-05,2]
[347052528,1735485046443,-500.0,9.47e-05,2]
[347052529,1735485046453,-500.0,9.47e-05,2]
[347052530,1735485046462,-176.0558825,9.47e-05,2]
[347052531,1735485046471,-500.0,9.47e-05,2]
[347052532,1735485046480,-500.0,9.47e-05,2]
[347052533,1735485046490,-500.0,9.47e-05,2]
[347052534,1735485046499,-500.0,9.47e-05,2]
[347052535,1735485046508,-505.50937111,9.47e-05,2]
[347052536,1735485046518,-500.0,9.47e-05,2]
[347052537,1735485046527,-500.0,9.47e-05,2]
[347052538,1735485046537,-670.05,9.47e-05,2]
[347052539,1735485046546,-501.8643643,9.47e-05,2]
[347052540,1735485046556,-500.0,9.473e-05,2]
[347052541,1735485046565,-500.0,9.473e-05,2]
[347052542,1735485046575,-500.0,9.473e-05,2]
[347052543,1735485046584,-500.0,9.473e-05,2]
[347052544,1735485046594,-500.0,9.473e-05,2]
[347052545,1735485046603,-500.0,9.473e-05,2]
[347052546,1735485046613,-500.0,9.473e-05,2]
[347052547,1735485046622,-500.0,9.473e-05,2]
[347052548,1735485046632,-441.51593226,9.473e-05,2]
[347052549,1735485046641,-507.1148611,9.473e-05,2]
[347052550,1735485046650,-500.84389074,9.502e-05,2]
[347052551,1735485046659,-332.51530406,9.502e-05,2]
[347052552,1735485046669,-500.0,9.502e-05,2]
[347052553,1735485046679,-502.4753739,9.502e-05,2]
[347052554,1735485046688,-500.0,9.502e-05,2]
[347052555,1735485046699,-503.00950594,9.502e-05,2]
[347052556,1735485046708,-500.0,9.502e-05,2]
[347052557,1735485046717,-500.0,9.502e-05,2]
[347052558,1735485046728,-500.0,9.502e-05,2]
[347052559,1735485046738,-500.0,9.502e-05,2]
[347052560,1735485046748,-500.0,9.502e-05,2]
[347052561,1735485046757,-500.0,9.502e-05,2]
[347052562,1735485046767,-227.09888189,9.502e-05,2]
[347052563,1735485046776,-500.0,9.503e-05,2]
[347052564,1735485046786,-983.55,9.503e-05,2]
[347052565,1735485046798,-500.0,9.503e-05,2]
[347052566,1735485046807,-500.0,9.503e-05,2]
[347052567,1735485046816,-500.0,9.503e-05,2]
[347052568,1735485046826,-500.0,9.503e-05,2]
[347052569,1735485046838,-500.0,9.503e-05,2]
[347052570,1735485046847,-504.84278697,9.504e-05,2]
[347052571,1735485046857,-507.68154132,9.504e-05,2]
[347052572,1735485046868,-504.62763379,9.504e-05,2]
[347052573,1735485046877,-500.0,9.504e-05,2]
[347052574,1735485046887,-500.0,9.504e-05,2]
[347052575,1735485046897,-1664.69,9.504e-05,2]
[347052576,1735485046907,-1664.69,9.504e-05,2]
[347052577,1735485046917,-4851.03,9.505e-05,2]
[347052578,1735485046927,-783.32,9.505e-05,2]
[347052579,1735485046936,-243.82362179,9.505e-05,2]
[347052580,1735485046948,-500.0,9.505e-05,2]
[347052581,1735485046957,-5496.72,9.51e-05,2]
[347052582,1735485046967,-1664.69,9.513e-05,2]
[347052583,1735485046977,-1332.0,9.676e-05,2]
[347052584,1735485046986,-605.91,9.739e-05,2]
[347052586,1735485046996,-500.0,9.739e-05,2]
[347052587,1735485047006,-2121.42,9.739e-05,2]
[347052589,1735485047015,-1059.67,9.74e-05,2]
[347052591,1735485047024,-500.0,9.74e-05,2]
[347052593,1735485047033,-500.0,9.74e-05,2]
[347052595,1735485047043,-500.0,9.74e-05,2]
[347052596,1735485047052,-2563.51,9.74e-05,2]
[347052598,1735485047061,-500.0,9.74e-05,2]
[347052600,1735485047071,-500.0,9.74e-05,2]
[347052601,1735485047080,-355.82349504,9.74e-05,2]
[347052602,1735485047090,-1657.25,9.74e-05,2]
[347052603,1735485047099,-500.0,9.741e-05,2]
[347052604,1735485047109,-500.0,9.741e-05,2]
[347052605,1735485047118,-500.0,9.741e-05,2]
[347052606,1735485047128,-500.0,9.741e-05,2]
[347052607,1735485047137,-158.20649199,9.741e-05,2]
[347052608,1735485047146,-716.16,9.741e-05,2]
[347052609,1735485047156,-500.0,9.741e-05,2]
[347052610,1735485047165,-500.0,9.741e-05,2]
[347052611,1735485047174,-269.98300044,9.741e-05,2]
[347052612,1735485047183,-500.0,9.741e-05,2]
[347052613,1735485047193,-500.0,9.741e-05,2]
[347052614,1735485047202,-480.93022324,9.741e-05,2]
[347052615,1735485047212,-500.0,9.741e-05,2]
[347052616,1735485047221,-555.56,9.741e-05,2]
[347052617,1735485047231,-500.0,9.741e-05,2]
[347052618,1735485047240,-500.0,9.741e-05,2]
[347052619,1735485047249,-442.60988733,9.741e-05,2]
[347052620,1735485047258,-500.0,9.741e-05,2]
[347052621,1735485047268,-579.83,9.741e-05,2]
[347052622,1735485047277,-500.0,9.741e-05,2]
[347052624,1735485047340,-500.0,9.741e-05,2]
[347052625,1735485047350,-500.0,9.741e-05,2]
[347052626,1735485047359,-500.0,9.741e-05,2]
[347052627,1735485047369,-500.0,9.741e-05,2]
[347052628,1735485047378,-750.61,9.741e-05,2]
[347052629,1735485047387,-511.9,9.741e-05,2]
[347052630,1735485047396,-484.7596766,9.741e-05,2]
[347052631,1735485047405,-500.0,9.741e-05,2]
[347052632,1735485047415,-500.0,9.741e-05,2]
[347052633,1735485047425,-500.0,9.741e-05,2]
[347052634,1735485047434,-509.04656982,9.741e-05,2]
[347052635,1735485047443,-500.0,9.741e-05,2]
[347052636,1735485047453,-507.17277319,9.741e-05,2]
[347052637,1735485047463,-500.0,9.741e-05,2]
[347052638,1735485047472,-500.0,9.741e-05,2]
[347052639,1735485047482,-500.0,9.741e-05,2]
[347052640,1735485047491,-500.0,9.741e-05,2]
[347052641,1735485047500,-500.0,9.741e-05,2]
[347052642,1735485047509,-515.79,9.741e-05,2]
[347052643,1735485047519,-510.83,9.741e-05,2]
[347052644,1735485047528,-500.0,9.741e-05,2]
[347052645,1735485047538,-1035.32,9.741e-05,2]
[347052647,1735485047547,-500.0,9.741e-05,2]
[347052649,1735485047557,-500.0,9.741e-05,2]
[347052651,1735485047567,-500.0,9.741e-05,2]